fUSD/lending_fUSD_20240119
["ID","MTS","AMOUNT","RATE_DAILY","PERIOD"]
[312216694,1705690675928,-891.97119334,0.0004,30]
[312216695,1705690675951,-546.15356135,0.0004,30]
[312216696,1705690675976,-9247.10171838,0.0004,30]
[312216697,1705690676001,-10173.81551013,0.0004,30]
[312216698,1705690676025,-9738.37231659,0.0004,30]
[312216699,1705690676050,-8867.92172261,0.0004,30]
[312216700,1705690676075,-19311.75773103,0.0004,30]
[312216701,1705690676101,-7287.88475674,0.0004,30]
[312216702,1705690676126,-13759.50152974,0.0004,30]
[312216703,1705690676150,-16200.12004482,0.0004,30]
[312216704,1705690676175,-14065.34539951,0.0004,30]
[312216705,1705690676199,-15797.16771984,0.0004,30]
[312216706,1705690676227,-1000.0,0.0004,41]
[312216707,1705690676257,-23720.07480056,0.0004,30]
[312216708,1705690676293,-200.489062,0.0004,30]
[312216709,1705690676321,-150.0,0.0004,30]
[312216710,1705690676344,-150.0,0.0004,30]
[312216711,1705690676369,-159.15,0.00040129,60]
[312216712,1705690676393,-417.75,0.00040215,60]
[312216713,1705690676418,-159.15,0.00040427,60]
[312216714,1705690676444,-417.75,0.0004047,60]
[312216715,1705690676469,-150.37387044,0.00040609,30]
[312216716,1705690676492,-417.75,0.00040725,60]
[312216717,1705690676515,-159.15,0.00040725,60]
[312216718,1705690676539,-24255.0,0.000408,30]
[312216719,1705690676566,-1627.5903403,0.00040885,120]
[312216720,1705690676589,-400.0,0.00040932,120]
[312216721,1705690676614,-1208.0,0.00040965,30]
[312216722,1705690676637,-410899.44094265,0.0004098,30]
[312216723,1705690676661,-350.0,0.00040986,120]
[312216724,1705690676685,-500.0,0.00040987,31]
[312216725,1705690676956,-500.0,0.00040987,30]
[312216726,1705690676981,-300.0,0.00041,42]
[312216727,1705690677004,-32807.28633356,0.00041,30]
[312216728,1705690677026,-1000.0,0.00041,30]
[312216729,1705690677052,-2000000.0,0.00041,95]
[312216730,1705690677075,-18891.0,0.00041,30]
[312216731,1705690677097,-803.0,0.00041,30]
[312216732,1705690677120,-3088.0,0.00041,120]
[312216733,1705690677143,-7500.0,0.00041,30]
[312216734,1705690677166,-539.4124121,0.00041042,100]
[312216735,1705690677190,-173.37117986,0.00041095,120]
[312216736,1705690677214,-500.0,0.00041095,30]
[312216737,1705690677238,-500.0,0.00041095,30]
[312216738,1705690677262,-500.0,0.00041095,30]
[312216739,1705690677283,-500.0,0.00041095,30]
[312216740,1705690677308,-500.0,0.00041095,30]
[312216741,1705690677330,-640.56071211,0.00041095,30]
[312216742,1705690677354,-510.0,0.00041095,120]
[312216743,1705690677381,-277.0,0.0004123,120]
[312216744,1705690677408,-510.0,0.00041369,120]
[312216745,1705690677430,-1000.0,0.0004137,120]
[312216746,1705690677454,-150.37387044,0.00041609,30]
[312216747,1705690677477,-510.0,0.00041643,120]
[312216748,1705690677501,-33578.60853,0.000418,30]
[312216749,1705690677523,-6000.000001,0.000418,40]
[312216750,1705690677550,-421004.8262742,0.00041858,30]
[312216751,1705690677573,-2643.45478825,0.00041859,30]
[312216752,1705690677595,-1250.46835606,0.0004186,30]
[312216753,1705690677618,-881.1515961,0.0004186,30]
[312216754,1705690677641,-597.04979746,0.0004186,30]
[312216755,1705690677663,-51325.24684255,0.00041861,30]
[312216756,1705690677685,-682.77415351,0.00041861,30]
[312216757,1705690677707,-881.1515961,0.00041862,30]
[312216758,1705690677729,-400.0,0.00041863,120]
[312216759,1705690677752,-51325.24684255,0.00041863,30]
[312216760,1705690677774,-682.77415351,0.00041864,30]
[312216761,1705690677795,-168.0,0.00041865,90]
[312216762,1705690677818,-207.97670086,0.00041868,30]
[312216763,1705690677840,-1250.46835606,0.00041869,30]
[312216764,1705690677863,-597.04979746,0.00041872,30]
[312216765,1705690677885,-52869.09576435,0.00041873,30]
[312216766,1705690677907,-881.1515961,0.00041876,30]
[312216767,1705690677930,-1250.46835606,0.00041877,30]
[312216768,1705690677952,-421004.8262742,0.00041878,30]
[312216769,1705690677974,-2643.45478825,0.00041881,30]
[312216770,1705690677997,-421004.8262742,0.00041883,30]
[312216771,1705690678019,-3363.38328807,0.00041883,30]
[312216772,1705690678042,-2643.45478825,0.00041885,30]
[312216773,1705690678067,-3363.38328807,0.00041886,30]
[312216774,1705690678089,-415.04813517,0.00041887,30]
[312216775,1705690678114,-51325.24684255,0.00041889,30]
[312216776,1705690678137,-597.04979746,0.00041891,30]
[312216777,1705690678161,-52869.09576435,0.00041892,30]
[312216778,1705690678184,-52869.09576435,0.00041892,30]
[312216779,1705690678208,-415.04813517,0.00041897,30]
[312216780,1705690678237,-682.77415351,0.00041898,30]
[312216781,1705690678263,-3363.38328807,0.00041898,30]
[312216782,1705690678286,-415.04813517,0.00041898,30]
[312216783,1705690678314,-181.14438064,0.000419,30]
[312216784,1705690678337,-2374.45323302,0.000419,60]
[312216785,1705690678360,-41505.8944136,0.000419,30]
[312216786,1705690678382,-550.54570486,0.000419,60]
[312216787,1705690678406,-510.0,0.00041917,120]
[312216788,1705690678429,-350.0,0.00041973,120]
[312216789,1705690678452,-500.0,0.00041987,33]
[312216790,1705690678476,-500.0,0.00041987,32]
[312216791,1705690678501,-511.06502631,0.00042,30]
[312216792,1705690678525,-2000.0,0.00042,90]
[312216793,1705690678554,-400.99472101,0.00042,120]
[312216794,1705690678579,-1614.34572943,0.00042,60]
[312216795,1705690678605,-1756.46855695,0.00042,120]
[312216796,1705690678630,-2180.0,0.00042,90]
[312216797,1705690678658,-300.0,0.00042,43]
[312216798,1705690678683,-1015.8,0.00042,60]
[312216799,1705690678705,-10418.98474879,0.00042,30]
[312216800,1705690678729,-349117.38164316,0.00042,100]
[312216801,1705690684335,-155.0,0.00036,30]
[312216802,1705690684397,-1135.15687489,0.000388,30]
[312216803,1705690684454,-155.0,0.0004,30]
[312216804,1705690684479,-383.16466478,0.0004,30]
[312216805,1705690684518,-1650882.61835684,0.00042,100]
[312216806,1705690684543,-5000.0,0.00042,30]
[312216807,1705690684572,-650.0,0.00042,120]
[312216808,1705690684596,-330.0,0.00042,30]
[312216809,1705690684622,-15000.0,0.00042,40]
[312216810,1705690684646,-1000.9,0.00042,90]
[312216811,1705690684669,-16000.0,0.00042,60]
[312216812,1705690684693,-200.0,0.00042,30]
[312216813,1705690684716,-150.0,0.00042,30]
[312216814,1705690684740,-150.0,0.00042,30]
[312216815,1705690684764,-510.0,0.00042191,120]
[312216816,1705690684792,-5219.75,0.00042465,30]
[312216817,1705690684819,-5219.75,0.00042465,30]
[312216818,1705690684841,-5219.75,0.00042465,30]
[312216819,1705690684865,-5219.75,0.00042465,30]
[312216820,1705690684890,-5219.75,0.00042465,30]
[312216821,1705690684916,-5219.75,0.00042465,30]
[312216822,1705690684940,-5219.75,0.00042465,30]
[312216823,1705690684964,-5219.75,0.00042465,30]
[312216824,1705690684987,-5219.75,0.00042465,30]
[312216825,1705690685009,-5219.75,0.00042465,30]
[312216826,1705690685032,-5219.75,0.00042465,30]
[312216827,1705690685057,-5219.75,0.00042465,30]
[312216828,1705690685080,-5219.75,0.00042465,30]
[312216829,1705690685104,-5219.75,0.00042465,30]
[312216830,1705690685128,-5219.75,0.00042465,30]
[312216831,1705690685151,-5219.75,0.00042465,30]
[312216832,1705690685175,-5219.75,0.00042465,30]
[312216833,1705690685198,-5219.75,0.00042465,30]
[312216834,1705690685221,-5219.75,0.00042465,30]
[312216835,1705690685245,-5219.75,0.00042465,30]
[312216836,1705690685269,-5219.75,0.00042465,30]
[312216837,1705690685293,-5219.75,0.00042465,30]
[312216838,1705690685320,-5219.75,0.00042465,30]
[312216839,1705690685343,-5219.82217381,0.00042465,30]
[312216840,1705690685373,-510.0,0.00042465,120]
[312216841,1705690685401,-1000.0,0.00042466,30]
[312216842,1705690685428,-1000.0,0.00042466,30]
[312216843,1705690685454,-1000.0,0.00042466,30]
[312216844,1705690685480,-1000.0,0.00042466,30]
[312216845,1705690685504,-1000.0,0.00042466,30]
[312216846,1705690685528,-1000.0,0.00042466,30]
[312216847,1705690685557,-1000.0,0.00042466,30]
[312216848,1705690685588,-1000.0,0.00042466,30]
[312216849,1705690685614,-1000.0,0.00042466,30]
[312216850,1705690685641,-1000.0,0.00042466,30]
[312216851,1705690685665,-1000.0,0.00042466,30]
[312216852,1705690685689,-1000.0,0.00042466,30]
[312216853,1705690685713,-1000.0,0.00042466,30]
[312216854,1705690685738,-1000.0,0.00042466,30]
[312216855,1705690685761,-1000.0,0.00042466,30]
[312216856,1705690685785,-1000.0,0.00042466,30]
[312216857,1705690685812,-1000.0,0.00042466,30]
[312216858,1705690685835,-1000.0,0.00042466,30]
[312216859,1705690685859,-1000.0,0.00042466,30]
[312216860,1705690685882,-1000.0,0.00042466,30]
[312216861,1705690685907,-1000.0,0.00042466,30]
[312216862,1705690685930,-1000.0,0.00042466,30]
[312216863,1705690685953,-1000.0,0.00042466,30]
[312216864,1705690685977,-1000.0,0.00042466,30]
[312216865,1705690686001,-1000.0,0.00042466,30]
[312216866,1705690686025,-1000.0,0.00042466,30]
[312216867,1705690686049,-1000.0,0.00042466,30]
[312216868,1705690686077,-1000.0,0.00042466,30]
[312216869,1705690686099,-1000.0,0.00042466,30]
[312216870,1705690686122,-1000.0,0.00042466,30]
[312216871,1705690686144,-356.0,0.00042466,30]
[312216872,1705690686172,-850.0,0.000425,120]
[312216873,1705690686195,-5039.969,0.000425,35]
[312216874,1705690686219,-360.43366915,0.00042546,120]
[312216875,1705690686243,-150.37387044,0.00042609,30]
[312216876,1705690686265,-3549.0,0.000427,92]
[312216877,1705690686289,-913.86533573,0.00042725,90]
[312216878,1705690686317,-510.0,0.00042739,120]
[312216879,1705690686339,-400.0,0.00042795,120]
[312216880,1705690686361,-15751.83746558,0.000428,30]
[312216881,1705690686387,-150.0,0.00042808,120]
[312216882,1705690686410,-206.87521,0.0004287,30]
[312216883,1705690686431,-277023.66570947,0.00042888,32]
[312216884,1705690686454,-71126.15832736,0.00042888,32]
[312216885,1705690686664,-5157.33311011,0.000429,45]
[312216886,1705690686687,-384186.95282197,0.000429,30]
[312216887,1705690686710,-350.0,0.00042959,120]
[312216888,1705690686733,-500.0,0.00042987,35]
[312216889,1705690686756,-500.0,0.00042987,34]
[312216890,1705690686779,-135292.97169121,0.0004299,30]
[312216891,1705690686804,-3400.0,0.00043,90]
[312216892,1705690686827,-485.14076018,0.00043,120]
[312216893,1705690686848,-3166.0,0.00043,30]
[312216894,1705690686871,-792.70175593,0.00043,60]
[312216895,1705690686894,-300.0,0.00043,44]
[312216896,1705690686917,-370404.70351663,0.00043,30]
[312216897,1705690686941,-500.0,0.00043,120]
[312216898,1705690686964,-262.85771585,0.00043,120]
[312216899,1705690686987,-1203.27208594,0.00043,30]
[312216900,1705690687011,-18378.63132847,0.00043,30]
[312216901,1705690687035,-233.25258081,0.00043,30]
[312216902,1705690687060,-1000.0,0.00043,120]
[312216903,1705690687083,-788783.55,0.00043,30]
[312216904,1705690687106,-185.0,0.00043,90]
[312216905,1705690687131,-773.74507721,0.00043,30]
[312216906,1705690687153,-185.0,0.0004301,90]
[312216907,1705690687176,-510.0,0.00043013,120]
[312216908,1705690687199,-237.0,0.00043133,90]
[312216909,1705690687223,-510.0,0.00043287,120]
[312216910,1705690687247,-550.92501925,0.000433,30]
[312216911,1705690687273,-345942.91625339,0.000433,60]
[312216912,1705690687295,-215.11723059,0.00043381,30]
[312216913,1705690687322,-168.0,0.00043496,90]
[312216914,1705690687344,-237.0,0.00043496,90]
[312216915,1705690687367,-2188.36121403,0.000435,120]
[312216916,1705690687390,-2196.76559744,0.000435,90]
[312216917,1705690687414,-79196.11431461,0.000435,30]
[312216918,1705690687438,-510.0,0.00043561,120]
[312216919,1705690687462,-240.04886759,0.000436,30]
[312216920,1705690687486,-150.37387044,0.00043609,30]
[312216921,1705690687510,-2100.0,0.00043698,35]
[312216922,1705690687534,-400.0,0.00043726,120]
[312216923,1705690687560,-258343.87066822,0.00043757,30]
[312216924,1705690687583,-200.0,0.00043757,30]
[312216925,1705690687605,-767.33285482,0.00043758,30]
[312216926,1705690687629,-31495.03783516,0.00043761,30]
[312216927,1705690687653,-767.33285482,0.00043761,30]
[312216928,1705690687675,-540.7066612,0.00043761,30]
[312216929,1705690687698,-200.0,0.00043762,30]
[312216930,1705690687720,-1622.11998366,0.00043762,30]
[312216931,1705690687744,-32442.39967354,0.00043763,30]
[312216932,1705690687767,-31495.03783516,0.00043763,30]
[312216933,1705690687790,-767.33285482,0.00043763,30]
[312216934,1705690687814,-31495.03783516,0.00043763,30]
[312216935,1705690687837,-254.68862836,0.00043763,30]
[312216936,1705690687859,-254.68862836,0.00043764,30]
[312216937,1705690687881,-200.0,0.00043765,30]
[312216938,1705690687904,-200.0,0.00043766,30]
[312216939,1705690687928,-200.0,0.00043767,30]
[312216940,1705690687950,-2063.89429037,0.00043768,30]
[312216941,1705690687974,-200.0,0.00043769,30]
[312216942,1705690687997,-1622.11998366,0.00043769,30]
[312216943,1705690688020,-200.0,0.00043769,30]
[312216944,1705690688043,-254.68862836,0.00043771,30]
[312216945,1705690688066,-229145.88531463,0.00043771,30]
[312216946,1705690707239,-171.11631822,0.00036,30]
[312216947,1705690707293,-216.15,0.0003799,120]
[312216948,1705690707316,-150.5,0.0003799,60]
[312216949,1705690707740,-3231.29963115,0.0004,30]
[312216950,1705690707765,-155.0,0.0004,30]
[312216951,1705690707802,-501.92591592,0.00042,30]
[312216952,1705690707837,-29197.98535359,0.00043771,30]
[312216953,1705690707859,-150.0,0.00043771,30]
[312216954,1705690707882,-151.144,0.00043771,30]
[312216955,1705690707906,-767.33285482,0.00043772,30]
[312216956,1705690707928,-200.0,0.00043773,30]
[312216957,1705690707949,-200.0,0.00043773,30]
[312216958,1705690707973,-540.7066612,0.00043774,30]
[312216959,1705690707995,-200.0,0.00043776,30]
[312216960,1705690708018,-540.7066612,0.00043778,30]
[312216961,1705690708040,-200.0,0.00043779,30]
[312216962,1705690708063,-2063.89429037,0.00043779,30]
[312216963,1705690708087,-2063.89429037,0.0004378,30]
[312216964,1705690708109,-32442.39967354,0.00043782,30]
[312216965,1705690708133,-254.68862836,0.00043783,30]
[312216966,1705690708157,-418.97504871,0.00043784,30]
[312216967,1705690708182,-200.0,0.00043784,30]
[312216968,1705690708205,-366.37146658,0.00043784,30]
[312216969,1705690708227,-200.0,0.00043788,30]
[312216970,1705690708253,-2063.89429037,0.00043788,30]
[312216971,1705690708275,-1622.11998366,0.00043789,30]
[312216972,1705690708298,-32442.39967354,0.0004379,30]
[312216973,1705690708320,-1622.11998366,0.0004379,30]
[312216974,1705690708346,-366.37146658,0.00043791,30]
[312216975,1705690708369,-366.37146658,0.00043791,30]
[312216976,1705690708392,-31495.03783516,0.00043791,30]
[312216977,1705690708415,-418.97504871,0.00043791,30]
[312216978,1705690708440,-540.7066612,0.00043791,30]
[312216979,1705690708465,-258343.87066822,0.00043794,30]
[312216980,1705690708489,-32442.39967354,0.00043794,30]
[312216981,1705690708513,-200.0,0.00043795,30]
[312216982,1705690708540,-418.97504871,0.00043796,30]
[312216983,1705690708564,-200.0,0.00043797,30]
[312216984,1705690708587,-366.37146658,0.00043798,30]
[312216985,1705690708612,-258343.87066822,0.00043798,30]
[312216986,1705690708636,-418.97504871,0.00043799,30]
[312216987,1705690708660,-1700.48353518,0.000438,120]
[312216988,1705690708683,-33452.106248,0.000438,30]
[312216989,1705690708708,-6300.001001,0.000438,55]
[312216990,1705690708732,-228.50107964,0.000438,120]
[312216991,1705690708757,-592416.25887845,0.000438,40]
[312216992,1705690708781,-150.0,0.00043812,120]
[312216993,1705690708804,-4000.0,0.00043824,31]
[312216994,1705690708829,-500.0,0.00043835,30]
[312216995,1705690708852,-598.92,0.00043835,30]
[312216996,1705690708874,-500.0,0.00043835,60]
[312216997,1705690708897,-2863.61165855,0.00043835,40]
[312216998,1705690708920,-510.0,0.00043835,120]
[312216999,1705690708942,-5000.0,0.00043835,40]
[312217000,1705690708968,-150.0,0.00043849,120]
[312217001,1705690708993,-565.54805565,0.000439,30]
[312217002,1705690709016,-350.0,0.00043945,120]
[312217003,1705690709038,-5000.0,0.00043972,45]
[312217004,1705690709061,-500.0,0.00043987,37]
[312217005,1705690709086,-500.0,0.00043987,36]
[312217006,1705690709109,-3044.63510708,0.00043995,30]
[312217007,1705690709131,-175.0,0.00044,30]
[312217008,1705690709154,-40000.0,0.00044,30]
[312217009,1705690709178,-1435.13075001,0.00044,120]
[312217010,1705690709200,-5200.0,0.00044,31]
[312217011,1705690709227,-435.05563487,0.00044,30]
[312217012,1705690709250,-523.6842711,0.00044,120]
[312217013,1705690709275,-1786.88522807,0.00044,30]
[312217014,1705690709299,-309.26205547,0.00044,60]
[312217015,1705690709323,-300.0,0.00044,45]
[312217016,1705690709350,-213.81714361,0.00044,90]
[312217017,1705690709374,-6423.82452692,0.00044,60]
[312217018,1705690709398,-162457.47363616,0.00044,31]
[312217019,1705690709421,-1000.0,0.00044,120]
[312217020,1705690709446,-2500000.0,0.00044,120]
[312217021,1705690709469,-2021.4692,0.00044,30]
[312217022,1705690709491,-152.75129,0.00044,30]
[312217023,1705690709513,-32217.89402987,0.00044,30]
[312217024,1705690709537,-1121.0,0.00044,30]
[312217025,1705690709560,-284.4743728,0.00044,30]
[312217026,1705690709586,-2000.0,0.00044,60]
[312217027,1705690709608,-303.0,0.00044,60]
[312217028,1705690709631,-1336.19952776,0.00044,90]
[312217029,1705690709655,-885716.46299234,0.00044,60]
[312217030,1705690797408,-340.55,0.00020517,2]
[312217031,1705690797428,-235.7,0.00022207,2]
[312217032,1705690797452,-702.4,0.00022233,2]
[312217033,1705690797473,-163.39,0.00022319,2]
[312217034,1705690797533,-20.44843242,0.00022354,2]
[312217035,1705690797553,-4282.28921915,0.00022354,2]
[312217036,1705690797574,-176.33,0.000225,2]
[312217037,1705690797596,-513.12,0.000225,2]
[312217038,1705690797616,-150.0,0.000225,2]
[312217039,1705690797635,-150.0,0.000225,2]
[312217040,1705690797656,-1854.96,0.00022694,2]
[312217041,1705690797676,-340.55,0.00022781,2]
[312217042,1705690797695,-250.0,0.00022804,2]
[312217043,1705690797715,-169.21,0.00022897,2]
[312217044,1705690797735,-170.32894245,0.00022899,2]
[312217045,1705690797755,-150.0,0.00022899,2]
[312217046,1705690797778,-11812.0004,0.000229,2]
[312217047,1705690797800,-151.9905901,0.000229,2]
[312217048,1705690797820,-301.77797199,0.00022998,2]
[312217049,1705690797840,-155.0,0.00022999,2]
[312217050,1705690797860,-155.0,0.00022999,2]
[312217051,1705690797882,-17754.95444389,0.00022999,2]
[312217054,1705690820632,-250.0,0.000219,2]
[312217055,1705690820652,-750.0,0.00022668,2]
[312217056,1705690820675,-9000.0,0.00022999,2]
[312217057,1705690833195,-706.96,0.00022668,2]
[312217058,1705690833215,-155.0,0.00022999,2]
[312217059,1705690833236,-9138.04,0.00022999,2]
[312217060,1705690844542,-10000.0,0.00022999,2]
[312217061,1705690855528,-3191.26397536,0.00022998,2]
[312217062,1705690855549,-6808.73602464,0.00022999,2]
[312217063,1705690864502,-10000.0,0.00022999,2]
[312217064,1705690878664,-2341.6264927,0.00022078,2]
[312217065,1705690878684,-821.65,0.00022612,3]
[312217066,1705690878706,-1836.7235073,0.00022998,2]
[312217067,1705691193960,-151.0,0.00031764,30]
[312217068,1705691194003,-486.5964822,0.00033,34]
[312217069,1705691194030,-150.0,0.00033196,120]
[312217070,1705691194066,-300.0,0.00034,35]
[312217071,1705691194105,-504.15851662,0.00035,30]
[312217072,1705691194131,-300.0,0.00035,36]
[312217073,1705691194169,-600.0,0.00036,37]
[312217074,1705691194197,-512.07717565,0.00036,30]
[312217075,1705691194222,-155.0,0.00036,30]
[312217076,1705691194259,-300.0,0.00037,38]
[312217077,1705691194292,-150.5,0.0003797,120]
[312217078,1705691194319,-150.5,0.0003797,120]
[312217079,1705691194344,-233.1,0.0003797,120]
[312217080,1705691194371,-157.99,0.0003797,120]
[312217081,1705691194396,-150.5,0.0003798,120]
[312217082,1705691194424,-150.5,0.0003798,120]
[312217083,1705691194450,-150.5,0.0003798,120]
[312217084,1705691194475,-150.5,0.0003798,120]
[312217085,1705691194503,-150.5,0.0003798,120]
[312217086,1705691194530,-150.5,0.0003799,120]
[312217087,1705691194557,-283.29,0.0003799,120]
[312217088,1705691194583,-219.78,0.0003799,120]
[312217089,1705691194616,-150.5,0.0003799,120]
[312217090,1705691194643,-158.78,0.0003799,120]
[312217091,1705691194669,-150.5,0.0003799,120]
[312217092,1705691194696,-150.5,0.0003799,120]
[312217093,1705691194722,-153.79,0.0003799,120]
[312217094,1705691194750,-150.5,0.0003799,60]
[312217095,1705691194774,-150.5,0.0003799,120]
[312217096,1705691194800,-300.0,0.00038,39]
[312217097,1705691194828,-1442.12,0.00038356,30]
[312217098,1705691194853,-1442.12,0.00038356,30]
[312217099,1705691194877,-1442.12,0.00038356,30]
[312217100,1705691194901,-1442.12,0.00038356,30]
[312217101,1705691194925,-1442.12,0.00038356,30]
[312217102,1705691194951,-1442.12,0.00038356,30]
[312217103,1705691194977,-1442.12,0.00038356,30]
[312217104,1705691195003,-1442.12,0.00038356,30]
[312217105,1705691195029,-1442.12,0.00038356,30]
[312217106,1705691195055,-1442.12,0.00038356,30]
[312217107,1705691195082,-1442.12,0.00038356,30]
[312217108,1705691195109,-1442.12,0.00038356,30]
[312217109,1705691195135,-1442.12,0.00038356,30]
[312217110,1705691195161,-1442.12,0.00038356,30]
[312217111,1705691195187,-1442.12,0.00038356,30]
[312217112,1705691195212,-1442.12,0.00038356,30]
[312217113,1705691195444,-1442.12,0.00038356,30]
[312217114,1705691195473,-1442.12,0.00038356,30]
[312217115,1705691195504,-1442.12,0.00038356,30]
[312217116,1705691195531,-1442.12,0.00038356,30]
[312217117,1705691195558,-1442.12,0.00038356,30]
[312217118,1705691195587,-1442.12,0.00038356,30]
[312217119,1705691195615,-1442.12,0.00038356,30]
[312217120,1705691195644,-1442.27683754,0.00038356,30]
[312217121,1705691195679,-1135.15687489,0.000388,30]
[312217122,1705691195709,-557.01,0.00038937,60]
[312217123,1705691195739,-464.90540134,0.00039,40]
[312217124,1705691195767,-358.0781534,0.00039,33]
[312217125,1705691195796,-557.01,0.00039193,60]
[312217126,1705691195825,-557.01,0.00039448,60]
[312217127,1705691195855,-557.01,0.00039704,60]
[312217128,1705691195884,-1208.0,0.00039751,30]
[312217129,1705691195912,-500.0,0.0003989,30]
[312217130,1705691195940,-557.01,0.00039959,60]
[312217131,1705691195976,-190.39953659,0.0004,30]
[312217132,1705691196003,-3231.29963115,0.0004,30]
[312217133,1705691196030,-1309.76535604,0.0004,30]
[312217134,1705691196055,-1890.45480693,0.0004,30]
[312217135,1705691196081,-197.50890397,0.0004,30]
[312217136,1705691196108,-2000.0,0.0004,120]
[312217137,1705691196137,-353.23644983,0.0004,30]
[312217138,1705691196166,-4344.56495812,0.0004,30]
[312217139,1705691196191,-1170.24568378,0.0004,120]
[312217140,1705691196218,-350.0,0.0004,120]
[312217141,1705691196244,-3602.15,0.0004,30]
[312217142,1705691196277,-400.0,0.0004,120]
[312217143,1705691196306,-5000.0,0.0004,30]
[312217144,1705691196339,-4001.09116858,0.0004,30]
[312217145,1705691196369,-1000.0,0.0004,30]
[312217146,1705691196398,-2000.0,0.0004,60]
[312217147,1705691196430,-356.70175796,0.0004,41]
[312217148,1705691196457,-200.489062,0.0004,30]
[312217149,1705691196487,-557.01,0.00040215,60]
[312217150,1705691196518,-500.0,0.00040438,30]
[312217151,1705691196545,-557.01,0.0004047,60]
[312217152,1705691196573,-175.168055,0.000405,30]
[312217153,1705691196601,-557.01,0.00040725,60]
[312217154,1705691196630,-400.0,0.00040932,120]
[312217155,1705691196658,-500.0,0.00040986,30]
[312217156,1705691196685,-350.0,0.00040986,120]
[312217157,1705691196716,-173.37117986,0.00041095,120]
[312217158,1705691196743,-500.0,0.00041095,30]
[312217159,1705691196768,-500.0,0.00041095,30]
[312217160,1705691196794,-500.0,0.00041095,30]
[312217161,1705691196820,-500.0,0.00041095,30]
[312217162,1705691196846,-500.0,0.00041095,30]
[312217163,1705691196873,-640.56071211,0.00041095,30]
[312217164,1705691196902,-383.6933804,0.00041096,30]
[312217165,1705691196929,-520.9858642,0.00041111,30]
[312217166,1705691196959,-186.73552096,0.00041111,30]
[312217167,1705691196987,-520.9858642,0.00041156,30]
[312217168,1705691197014,-186.73552096,0.00041156,30]
[312217169,1705691197041,-520.9858642,0.000412,30]
[312217170,1705691197067,-186.73552096,0.000412,30]
[312217171,1705691197093,-150.0,0.00041227,120]
[312217172,1705691197119,-150.0,0.0004123,30]
[312217173,1705691197145,-520.9858642,0.00041244,30]
[312217174,1705691197170,-186.73552096,0.00041244,30]
[312217175,1705691197195,-520.9858642,0.00041289,30]
[312217176,1705691197220,-186.73552096,0.00041289,30]
[312217177,1705691197247,-520.9858642,0.00041333,30]
[312217178,1705691197272,-186.73552096,0.00041333,30]
[312217179,1705691197298,-1000.0,0.0004137,120]
[312217180,1705691197323,-520.9858642,0.00041378,30]
[312217181,1705691197347,-186.73552096,0.00041378,30]
[312217182,1705691197372,-150.0,0.00041393,30]
[312217183,1705691197399,-520.9858642,0.00041422,30]
[312217184,1705691197428,-186.73552096,0.00041422,30]
[312217185,1705691197455,-520.9858642,0.00041467,30]
[312217186,1705691197479,-186.73552096,0.00041467,30]
[312217187,1705691197507,-520.9858642,0.00041511,30]
[312217188,1705691197533,-186.73552096,0.00041511,30]
[312217189,1705691197562,-500.0,0.00041534,30]
[312217190,1705691197588,-520.9858642,0.00041556,30]
[312217191,1705691197612,-186.73552096,0.00041556,30]
[312217192,1705691197637,-150.0,0.00041556,30]
[312217193,1705691197662,-520.9858642,0.000416,30]
[312217194,1705691197688,-186.73552096,0.000416,30]
[312217195,1705691197715,-520.9858642,0.00041644,30]